fUST/lending_fUST_20250914
["ID","MTS","AMOUNT","RATE_DAILY","PERIOD"]
[385400859,1757832652875,-480.0,0.00023287,3]
[385400860,1757832652883,-1654.71,0.00023287,3]
[385400861,1757832652893,-2665.36,0.00023287,3]
[385400862,1757832652902,-684.12,0.00023287,3]
[385400863,1757832652911,-497.04,0.00023287,3]
[385400864,1757832652920,-480.0,0.00023287,3]
[385400865,1757832652931,-1136.33,0.00023287,3]
[385400866,1757832652946,-480.0,0.00023287,3]
[385400867,1757832652955,-937.53,0.00023287,3]
[385400868,1757832652964,-894.67,0.00023287,3]
[385400869,1757832652973,-1253.5,0.00023287,3]
[385400870,1757832652982,-575.5,0.00023287,3]
[385400871,1757832652991,-796.69,0.00023287,3]
[385400872,1757832653001,-1032.91,0.00023287,3]
[385400873,1757832653010,-3189.12,0.00023287,3]
[385400874,1757832653020,-198.72563192,0.00023287,3]
[385400875,1757832653029,-480.0,0.00023287,3]
[385400876,1757832653038,-545.32,0.00023287,3]
[385400877,1757832653047,-480.0,0.00023287,3]
[385400878,1757832653056,-490.47,0.00023287,3]
[385400879,1757832653065,-1048.3,0.00023287,3]
[385400880,1757832653074,-480.0,0.00023287,3]
[385400881,1757832653083,-1695.91,0.00023287,3]
[385400882,1757832653092,-3318.01,0.00023287,3]
[385400883,1757832653101,-255.049498,0.00023288,7]
[385400884,1757832653110,-255.049498,0.00023288,7]
[385400885,1757832653119,-255.049498,0.00023288,7]
[385400886,1757832653128,-255.049498,0.00023288,7]
[385400887,1757832653137,-255.049498,0.00023288,7]
[385400888,1757832653146,-255.049498,0.00023288,7]
[385400889,1757832653157,-255.049498,0.00023288,7]
[385400890,1757832653167,-255.049498,0.00023288,7]
[385400891,1757832653176,-255.049498,0.00023288,7]
[385400892,1757832653186,-255.049498,0.00023288,7]
[385400893,1757832653197,-255.049498,0.00023288,7]
[385400894,1757832653206,-255.049498,0.00023288,7]
[385400895,1757832653217,-255.049498,0.00023288,7]
[385400896,1757832653226,-255.049498,0.00023288,7]
[385400897,1757832653236,-255.049498,0.00023288,7]
[385400898,1757832653245,-255.049498,0.00023288,7]
[385400899,1757832653254,-255.049498,0.00023288,7]
[385400900,1757832653263,-255.049498,0.00023288,7]
[385400901,1757832653272,-255.049498,0.00023288,7]
[385400902,1757832653281,-255.049507,0.00023288,7]
[385400903,1757832653290,-566.54119686,0.00023315,2]
[385400904,1757832653299,-168.0,0.00023375,2]
[385400905,1757832653308,-471.98627815,0.00023416,2]
[385400906,1757832653317,-160.0,0.00023428,5]
[385400907,1757832653326,-9238.16976797,0.00023464,2]
[385400908,1757832653335,-168.0,0.00023531,2]
[385400909,1757832653344,-164.59802626,0.00023559,5]
[385400910,1757832653353,-1012.0,0.0002356,2]
[385400911,1757832653362,-500.0,0.0002356,2]
[385400912,1757832653371,-971.23,0.00023561,3]
[385400913,1757832653380,-480.0,0.00023561,3]
[385400914,1757832653389,-480.0,0.00023561,3]
[385400915,1757832653398,-480.0,0.00023561,3]
[385400916,1757832653407,-572.24,0.00023561,3]
[385400917,1757832653416,-536.06,0.00023561,3]
[385400918,1757832653425,-940.07,0.00023561,3]
[385400919,1757832653434,-880.72,0.00023561,3]
[385400920,1757832653443,-480.0,0.00023561,3]
[385400921,1757832653452,-874.32,0.00023561,3]
[385400922,1757832653462,-1179.89,0.00023561,3]
[385400923,1757832653471,-553.48,0.00023561,3]
[385400924,1757832653482,-846.23,0.00023561,3]
[385400925,1757832653491,-480.0,0.00023561,3]
[385400926,1757832653500,-480.0,0.00023561,3]
[385400927,1757832653509,-836.7,0.00023561,3]
[385400928,1757832653518,-590.41,0.00023561,3]
[385400929,1757832653527,-480.0,0.00023561,3]
[385400930,1757832653536,-587.32,0.00023561,3]
[385400931,1757832653545,-480.0,0.00023561,3]
[385400932,1757832653563,-480.0,0.00023561,3]
[385400933,1757832653576,-504.98,0.00023561,3]
[385400934,1757832653586,-480.0,0.00023561,3]
[385400935,1757832653595,-480.0,0.00023561,3]
[385400936,1757832653608,-480.0,0.00023561,3]
[385400937,1757832653627,-689.26,0.00023561,3]
[385400938,1757832653637,-480.0,0.00023561,3]
[385400939,1757832653647,-701.85,0.00023561,3]
[385400940,1757832653655,-606.07,0.00023561,3]
[385400941,1757832653664,-946.45,0.00023561,3]
[385400942,1757832653673,-788.0,0.00023561,3]
[385400943,1757832653682,-1001.22,0.00023561,3]
[385400944,1757832653691,-663.78,0.00023561,3]
[385400945,1757832653700,-631.18,0.00023561,3]
[385400946,1757832653710,-480.0,0.00023561,3]
[385400947,1757832653719,-480.0,0.00023561,3]
[385400948,1757832653727,-1566.43,0.00023561,3]
[385400949,1757832653736,-569.21,0.00023561,3]
[385400950,1757832653745,-1432.2,0.00023561,3]
[385400951,1757832653754,-957.2,0.00023561,3]
[385400952,1757832653763,-1096.56,0.00023561,3]
[385400953,1757832653772,-480.0,0.00023561,3]
[385400954,1757832653781,-893.43,0.00023561,3]
[385400955,1757832653790,-1005.74,0.00023561,3]
[385400956,1757832653799,-480.0,0.00023561,3]
[385400957,1757832653808,-548.92,0.00023561,3]
[385400958,1757832653817,-640.6,0.00023561,3]
[385400959,1757832653827,-872.73,0.00023561,3]
[385400960,1757832653836,-627.32,0.00023561,3]
[385400961,1757832653845,-480.0,0.00023561,3]
[385400962,1757832653859,-861.73,0.00023561,3]
[385400963,1757832653993,-771.06,0.00023561,3]
[385400964,1757832654003,-553.93732327,0.00023561,3]
[385400965,1757832654013,-942.38,0.00023561,3]
[385400966,1757832654022,-2064.19,0.00023561,3]
[385400967,1757832654031,-200.0,0.00023561,2]
[385400968,1757832654040,-200.0,0.00023561,3]
[385400969,1757832654050,-200.0,0.00023561,3]
[385400970,1757832654059,-200.0,0.00023561,3]
[385400971,1757832654068,-178.67064094,0.00023561,3]
[385400972,1757832654077,-615.71,0.00023561,3]
[385400973,1757832654087,-480.0,0.00023561,3]
[385400974,1757832654096,-1385.59,0.00023561,3]
[385400975,1757832654105,-757.62,0.00023561,3]
[385400976,1757832654114,-1077.94,0.00023561,3]
[385400977,1757832654123,-675.59,0.00023561,3]
[385400978,1757832654132,-8498.17,0.00023561,3]
[385400979,1757832654142,-560.99,0.00023561,3]
[385400980,1757832654151,-300.0,0.00023561,2]
[385400981,1757832654161,-5268.46,0.00023561,3]
[385400982,1757832654170,-1005.96,0.00023561,3]
[385400983,1757832654179,-5300.04,0.00023561,3]
[385400984,1757832654188,-519.07,0.00023561,3]
[385400985,1757832654197,-4171.91,0.00023561,3]
[385400986,1757832654207,-1385.59,0.00023561,3]
[385400987,1757832654216,-480.0,0.00023561,3]
[385400988,1757832654225,-480.0,0.00023561,3]
[385400989,1757832654235,-37415.07,0.00023561,3]
[385400990,1757832654244,-480.0,0.00023561,3]
[385400991,1757832654253,-640.3,0.00023561,3]
[385400992,1757832654263,-1662.8,0.00023561,3]
[385400993,1757832654272,-578.83,0.00023561,3]
[385400994,1757832654281,-480.0,0.00023561,3]
[385400995,1757832654291,-510.73,0.00023561,3]
[385400996,1757832654300,-1847.58,0.00023561,3]
[385400997,1757832654310,-480.0,0.00023561,3]
[385400998,1757832654320,-437.69072291,0.00023561,3]
[385400999,1757832654329,-826.28,0.00023561,3]
[385401000,1757832654338,-1257.35,0.00023561,3]
[385401001,1757832654348,-1341.02,0.00023561,3]
[385401002,1757832654357,-576.04515315,0.00023561,3]
[385401003,1757832654366,-500.0,0.00023561,3]
[385401004,1757832654375,-531.14,0.00023561,3]
[385401005,1757832654385,-5938.28,0.00023561,3]
[385401006,1757832654394,-1685.18,0.00023561,3]
[385401007,1757832654403,-609.99,0.00023561,3]
[385401008,1757832654413,-3562.26,0.00023561,3]
[385401009,1757832654422,-480.0,0.00023561,3]
[385401010,1757832654431,-480.0,0.00023561,3]
[385401011,1757832654441,-3714.32,0.00023561,3]
[385401012,1757832654450,-647.81,0.00023561,3]
[385401013,1757832654459,-4744.37,0.00023561,3]
[385401014,1757832654468,-480.0,0.00023561,3]
[385401015,1757832654478,-480.0,0.00023561,3]
[385401016,1757832654487,-1745.35,0.00023561,3]
[385401017,1757832654496,-480.0,0.00023561,3]
[385401018,1757832654505,-946.59,0.00023561,3]
[385401019,1757832654514,-2865.29,0.00023561,3]
[385401020,1757832654523,-5081.92940275,0.00023561,3]
[385401021,1757832654539,-4045.91059725,0.00023561,3]
[385401022,1757832654548,-480.0,0.00023561,3]
[385401023,1757832654557,-75.59818969,0.00023561,3]
[385401024,1757832654573,-480.0,0.00023287,3]
[385401025,1757832654582,-996.06181031,0.00023561,3]
[385401026,1757832654591,-1367.69,0.00023561,3]
[385401027,1757832654599,-973.13,0.00023561,3]
[385401028,1757832654608,-18015.31,0.00023561,3]
[385401029,1757832654617,-4480.06,0.00023561,3]
[385401030,1757832654626,-841.96,0.00023561,3]
[385401031,1757832654635,-480.0,0.00023561,3]
[385401032,1757832654644,-1915.49,0.00023561,3]
[385401033,1757832654654,-727.26,0.00023561,3]
[385401034,1757832654663,-480.0,0.00023561,3]
[385401035,1757832654674,-2759.51,0.00023561,3]
[385401036,1757832654683,-480.0,0.00023561,3]
[385401037,1757832654692,-629.95,0.00023561,3]
[385401038,1757832654702,-620.55,0.00023561,3]
[385401039,1757832654712,-3822.38213859,0.00023561,3]
[385401040,1757832654724,-296.41786141,0.00023561,3]
[385401041,1757832654734,-480.0,0.00023561,3]
[385401042,1757832654743,-916.96743506,0.00023561,3]
[385401047,1757832696781,155.160401,0.00024,30]
[385401051,1757832769546,158.108303,0.00027397,120]
[385401052,1757832772399,209.5440805,0.00019652,2]
[385401053,1757832775984,-352.72514047,0.000199,2]
[385401054,1757832782625,-293.90784349,0.000199,2]
[385401055,1757832784937,-262.18370928,0.000199,2]
[385401056,1757832789126,-255.9724317,0.000199,2]
[385401057,1757832793322,-172.68016149,0.000199,2]
[385401058,1757832797067,-179.93467193,0.000199,2]
[385401059,1757832799314,-163.27744421,0.000199,2]
[385401060,1757832801945,-202.95413605,0.000199,2]
[385401061,1757832802855,2000.0,0.00019309,2]
[385401062,1757832805767,-438.43093488,0.000199,2]
[385401063,1757832809362,-179.82183482,0.000199,2]
[385401064,1757832812997,-166.5117253,0.000199,2]
[385401066,1757832857414,5000.0,0.00019701,2]
[385401067,1757832857838,-167.33877011,0.00019701,2]
[385401068,1757832864657,-169.05899972,0.00019701,2]
[385401069,1757832870224,-155.45994058,0.00019701,2]
[385401070,1757832871788,-440.13023696,0.00019701,2]
[385401071,1757832876713,-161.23327438,0.00019701,2]
[385401072,1757832878799,-512.76360136,0.00019701,2]
[385401073,1757832879413,5000.0,0.00019701,2]
[385401074,1757832880927,-156.68162977,0.00019701,2]
[385401075,1757832886951,-200.0,0.00019701,2]
[385401076,1757832888541,-587.84249265,0.00019701,2]
[385401077,1757832889625,0.01,0.0001968,2]
[385401078,1757832889647,303.06879564,0.0001968,2]
[385401079,1757832892618,-247.0321659,0.00019701,2]
[385401080,1757832903345,5000.0,0.00019701,2]
[385401091,1757833101012,250.0,0.0003011,50]
[385401093,1757833145844,-157.62398512,0.00018399,2]
[385401094,1757833149080,-166.31394601,0.00018399,2]
[385401095,1757833150674,-180.00781624,0.00018399,2]
[385401096,1757833152736,-250.0,0.00018399,2]
[385401097,1757833156722,-371.8375455,0.00018399,2]
[385401098,1757833159356,-320.62198376,0.00018399,2]
[385401099,1757833160868,-233.49066903,0.00018399,2]
[385401100,1757833164548,-157.62398512,0.00018399,2]
[385401101,1757833166626,-276.73849027,0.00018399,2]
[385401102,1757833168697,-154.75521047,0.00018399,2]
[385401105,1757833173752,-151.78147644,0.00018399,2]
[385401106,1757833176374,-242.45773546,0.00018399,2]
[385401107,1757833180499,-152.0,0.00018399,2]
[385401108,1757833183103,-307.96424112,0.00018399,2]
[385401109,1757833185161,-367.89372861,0.00018399,2]
[385401110,1757833188646,-519.90564708,0.00018399,2]
[385401111,1757833192779,-227.00801504,0.00018399,2]
[385401112,1757833197180,-186.99373193,0.00018399,2]
[385401113,1757833198714,-167.3945075,0.00018399,2]
[385401114,1757833200834,-205.05568667,0.00018399,2]
[385401115,1757833205507,-292.01567721,0.00018399,2]
[385401116,1757833206004,164.59802626,0.00017911,2]
[385401117,1757833213538,-180.89454327,0.00018399,2]
[385401118,1757833216211,-136.59752335,0.00018399,2]
[385401119,1757833216235,-50.85123965,0.00018474,2]
[385401120,1757833221686,-168.5724761,0.00018474,2]
[385401121,1757833225331,-152.0,0.00018474,2]
[385401122,1757833229834,-427.95979593,0.00018474,2]
[385401123,1757833231404,-368.78699958,0.00018474,2]
[385401124,1757833233651,-291.35041951,0.00018474,2]
[385401125,1757833237957,-181.34679544,0.00018474,2]
[385401126,1757833242282,-339.74660172,0.00018474,2]
[385401127,1757833245882,-185.17404277,0.00018474,2]
[385401128,1757833246911,5000.0,0.00018474,2]
[385401129,1757833247975,-292.70482761,0.00018474,2]
[385401130,1757833249960,-300.0,0.00018474,2]
[385401131,1757833254255,-300.0,0.00018474,2]
[385401132,1757833256891,-330.94100028,0.00018474,2]
[385401133,1757833261608,-274.36274418,0.00018474,2]
[385401134,1757833264838,-225.04068905,0.00018474,2]
[385401135,1757833270070,5000.0,0.00018474,2]
[385401136,1757833270496,-204.49300831,0.00018474,2]
[385401137,1757833274315,-290.13616409,0.00018474,2]
[385401138,1757833277337,-168.0,0.00018474,2]
[385401139,1757833293160,0.01,0.00018474,2]
[385401140,1757833293184,4999.99,0.00018474,2]
[385401141,1757833297918,155.160401,0.00024,30]
[385401143,1757833316220,5000.0,0.00018474,2]
[385401144,1757833324617,0.02,0.00018474,2]
[385401145,1757833324641,4999.98,0.00018474,2]
[385401146,1757833340543,5000.0,0.00018661,2]
[385401147,1757833347088,-152.0,0.00018661,2]
[385401148,1757833348678,5000.0,0.00018661,2]
[385401149,1757833350087,-421.86793081,0.00018661,2]
[385401150,1757833364072,0.01,0.00018661,2]
[385401151,1757833364101,4999.99,0.00018661,2]
[385401152,1757833372676,5000.0,0.00018661,2]
[385401153,1757833374034,-165.77456623,0.00018661,2]
[385401154,1757833381518,0.02,0.00018661,2]
[385401155,1757833381541,165.75456623,0.00018661,2]
[385401167,1757833389541,5000.0,0.00018661,2]
[385401168,1757833397790,4834.25543377,0.00018661,2]
[385401169,1757833397813,165.74456623,0.00018661,2]
[385401171,1757833414264,5000.0,0.00018661,2]
[385401172,1757833422396,4834.26543377,0.00018661,2]
[385401173,1757833422418,165.73456623,0.00018661,2]
[385401174,1757833438231,5000.0,0.00018661,2]
[385401175,1757833446216,4834.27543377,0.00018661,2]
[385401176,1757833446240,165.72456623,0.00018661,2]
[385401177,1757833462195,5000.0,0.00018661,2]
[385401178,1757833469911,4834.28543377,0.00018635,2]
[385401179,1757833469934,4049.69507013,0.00018635,2]
[385401180,1757833470086,5000.0,0.00018661,2]
[385401182,1757833487278,950.31492987,0.00018661,2]
[385401183,1757833487303,4049.68507013,0.00018661,2]
[385401184,1757833487769,-633.12180256,0.00018661,2]
[385401185,1757833489650,8733.76639488,0.0001863,2]
[385401186,1757833489672,1266.23360512,0.0001863,2]
[385401187,1757833495254,5000.0,0.00018661,2]
[385401193,1757833503533,5000.0,0.00018925,2]
[385401194,1757833511602,5000.0,0.00018925,2]
[385401195,1757833521070,0.01,0.00018925,2]
[385401196,1757833521092,4999.99,0.00018925,2]
[385401197,1757833529008,1405.78256532,0.00018925,2]
[385401198,1757833537476,3594.23743468,0.00018925,2]
[385401199,1757833537500,1405.76256532,0.00018925,2]
[385401200,1757833545460,5000.0,0.00018925,2]
[385401201,1757833549011,250.0,0.00018323,2]
[385401202,1757833561412,3344.24743468,0.00018925,2]
[385401203,1757833561436,1655.75256532,0.00018925,2]
[385401205,1757833569415,5000.0,0.00018925,2]
[385401206,1757833585467,3344.25743468,0.00018925,2]
[385401207,1757833585491,1655.74256532,0.00018925,2]
[385401208,1757833594102,5000.0,0.00018925,2]
[385401209,1757833604560,1000.0,0.00018583,2]
[385401210,1757833619523,5000.0,0.00018548,2]
[385401211,1757833642778,5000.0,0.00018221,2]
[385401212,1757833665069,5000.0,0.00018221,2]
[385401214,1757833687521,1938.68689625,0.00018221,2]
[385401215,1757833755331,666.0,0.00018079,2]
[385401216,1757833812953,5000.0,0.00018221,2]
[385401254,1757833837143,5000.0,0.00018294,2]
[385401264,1757833838089,-238.11644,0.00018294,2]
[385401265,1757833838099,-201.265331,0.00018925,2]
[385401266,1757833838108,-300.0,0.00018939,2]
[385401267,1757833838117,-1200.0,0.00018939,2]
[385401268,1757833838126,-2575.49479588,0.0001894,2]
[385401269,1757833838138,-7424.51520412,0.0001894,2]
[385401270,1757833838147,-173.315537,0.00019074,2]
[385401271,1757833838155,-12247.83291367,0.00019363,2]
[385401272,1757833838166,-3241.23471311,0.00019363,2]
[385401273,1757833838177,-2530.68938524,0.00019363,2]
[385401274,1757833838188,-3678.24677764,0.00019363,2]
[385401278,1757833840062,-2181.09086732,0.00019363,2]
[385401279,1757833840161,-3030.17455592,0.00019363,2]
[385401280,1757833840171,-1746.51048249,0.00019997,2]
[385401281,1757833840181,-757.0,0.0002043,3]
[385401282,1757833840191,-378.5,0.0002043,3]
[385401283,1757833840200,-189.25,0.0002043,3]
[385401284,1757833840209,-567.79,0.0002043,3]
[385401285,1757833840218,-229.41,0.0002043,3]
[385401286,1757833840227,-688.26,0.0002043,3]
[385401287,1757833840237,-201.97,0.0002043,3]
[385401288,1757833840246,-168.31,0.0002043,3]
[385401289,1757833840257,-504.93,0.0002043,3]
[385401290,1757833840267,-154.03640722,0.00020439,2]
[385401291,1757833840277,-512.02989063,0.00020439,2]
[385401292,1757833840287,-222.8149509,0.00020439,2]
[385401293,1757833840297,-158609.55686391,0.0002044,2]
[385401294,1757833840822,-0.00695986,0.0002044,2]
[385401334,1757833846210,-500.0,0.0002044,2]
[385401335,1757833846380,-7272.03780335,0.0002044,2]
[385401339,1757833897643,155.160401,0.00024,30]
[385401345,1757834058899,158.108303,0.00027397,120]
[385401347,1757834111859,-239.46123868,0.00018608,2]
[385401348,1757834113416,-165.9960227,0.00018608,2]
[385401349,1757834117511,-455.48778367,0.00018608,2]
[385401350,1757834125393,-203.4359139,0.00018608,2]
[385401351,1757834127396,-161.13380853,0.00018608,2]
[385401352,1757834129787,1064.38095895,0.00018608,2]
[385401353,1757834133787,-252.78344526,0.00018608,2]
[385401356,1757834136465,-309.12184833,0.00018608,2]
[385401357,1757834142074,-176.51599405,0.00018608,2]
[385401358,1757834146216,-191.12758996,0.00018608,2]
[385401359,1757834149603,-432.75542749,0.00018608,2]
[385401360,1757834152742,-240.67913411,0.00018608,2]
[385401361,1757834154452,1523.43811362,0.00018608,2]
[385401362,1757834157921,-165.7745662,0.00018608,2]
[385401363,1757834159467,-191.12758996,0.00018608,2]
[385401364,1757834177384,597.58129027,0.00018608,2]
[385401366,1757834187562,-190.50204287,0.00018608,2]
[385401367,1757834193474,-376.13947647,0.00018608,2]
[385401368,1757834197601,-249.67507202,0.00018608,2]
[385401369,1757834199778,816.31659136,0.00018608,2]
[385401370,1757834199866,-170.82718854,0.00018608,2]
[385401371,1757834206424,-157.60099695,0.00018608,2]
[385401372,1757834207875,-154.2180119,0.00018608,2]
[385401373,1757834211412,1504.3723883,0.00018551,2]
[385401374,1757834213289,-198.17359769,0.00018608,2]
[385401375,1757834216844,-317.46325072,0.00018608,2]
[385401376,1757834222651,1101.17243683,0.00018608,2]
[385401377,1757834238112,5000.0,0.00018796,2]
[385401379,1757834244750,-365.23881708,0.00018796,2]
[385401380,1757834246174,-249.36336092,0.00018796,2]
[385401381,1757834247373,365.23881708,0.00018796,2]
[385401382,1757834263275,5000.0,0.00018985,2]
[385401383,1757834270319,-308.74400595,0.00018985,2]
[385401384,1757834271280,300.48177785,0.00018985,2]
[385401385,1757834274041,-298.55782712,0.00018985,2]
[385401386,1757834278508,-133.30336742,0.00018985,2]
[385401387,1757834287830,5000.0,0.00019303,2]
[385401388,1757834296422,756.22072816,0.00019303,2]
[385401389,1757834297320,230.9772536,0.00019115,120]
[385401395,1757834306973,-196.91157007,0.00019303,2]
[385401400,1757834309837,-172.33010839,0.00019303,2]
[385401401,1757834311348,-1.06092179,0.00019303,2]
[385401402,1757834311370,-151.89436896,0.00019361,2]
[385401403,1757834312392,4243.78927184,0.00019303,2]
[385401404,1757834312414,756.21072816,0.00019303,2]
[385401405,1757834317600,-148.10563104,0.00019361,2]
[385401406,1757834317621,-127.17565776,0.00019361,2]
[385401407,1757834319769,-172.82434224,0.00019361,2]
[385401408,1757834319792,-47.28675482,0.00019361,2]
[385401409,1757834321349,-207.39649926,0.00019361,2]
[385401410,1757834326019,-152.40059947,0.00019361,2]
[385401411,1757834328696,-287.34474372,0.00019361,2]
[385401412,1757834335368,5000.0,0.00019361,2]
[385401414,1757834358400,2381.60930436,0.00019361,2]
[385401415,1757834402919,-300.0,0.00019361,2]
[385401416,1757834403401,505.0,0.00019361,2]
[385401419,1757834444764,303.12427154,0.00018994,2]
[385401420,1757834462534,300.0,0.00019361,2]
[385401421,1757834520676,1304.37940751,0.00019362,2]
[385401422,1757834522826,300.0,0.00019361,2]
[385401423,1757834523339,-2000.0,0.00019362,7]
[385401424,1757834523369,-2000.0,0.00019362,7]
[385401425,1757834523400,-224.09875449,0.00019362,7]
[385401426,1757834523611,-1551.81249102,0.00019362,7]
[385401427,1757834535390,10000.0,0.00019377,2]
[385401428,1757834551944,1824.56647319,0.00030115,50]
[385401429,1757834552582,-174.970133,0.00019573,2]
[385401430,1757834558093,-158.36320034,0.00019573,2]
[385401431,1757834580203,0.01,0.00019573,2]
[385401432,1757834580227,333.32333334,0.00019573,2]
[385401433,1757834580899,-166.66666667,0.00019573,2]
[385401434,1757834582436,2034.89,0.00030115,50]
[385401437,1757834604120,166.66666667,0.00019573,2]
[385401439,1757834638847,2251.06999999,0.00030115,50]
[385401440,1757834658942,1251.77547442,0.00030115,50]
[385401441,1757834690418,1123.0,0.00030115,52]
[385401445,1757834715537,2000.0,0.00030115,50]
[385401448,1757834719831,238.1164406,0.00019311,2]
[385401481,1757834762561,9261.90355939,0.00019311,2]
[385401482,1757834762584,10000.01,0.00019311,2]
[385401483,1757834762609,6205.59145951,0.00019311,2]
[385401490,1757834775236,666.0,0.00019311,2]
[385401500,1757834798446,2000.0,0.00030116,50]
[385401501,1757834798492,1000.0,0.00019467,2]
[385401505,1757834828179,2128.41854049,0.00019311,2]
[385401506,1757834828202,4228.74552831,0.00019311,2]
[385401520,1757834867246,2035.67888827,0.00030116,50]
[385401521,1757834889253,418.32818006,0.00010618,2]
[385401522,1757834891014,9581.68181994,0.000125,2]
[385401523,1757834891036,1888.49020087,0.000125,2]
[385401524,1757834896825,-4540.22403703,0.000199,2]
[385401525,1757834896856,-300.0,0.00019999,2]
[385401527,1757834904117,284.86745483,0.0001,2]
[385401528,1757834911477,49799.16913134,0.00015,2]
[385401529,1757834913450,1000.0,0.0001,2]
[385401532,1757834918655,9504.26737209,0.0001,2]
[385401533,1757834919954,9152.7967873,0.0001,2]
[385401534,1757834920289,1726.99176546,0.0001,2]
[385401535,1757834947024,-2578.65354294,0.0002,2]
[385401536,1757834947268,-10000.01,0.0002,2]
[385401549,1757834956961,-4479.36445193,0.0002,2]
[385401550,1757834956990,-9.79502534,0.00020364,2]
[385401551,1757834957026,-1021.69104546,0.00020364,2]
[385401552,1757834957237,-200.52070568,0.00020439,2]
[385401553,1757834957272,-9598.96858864,0.0002044,2]
[385401554,1757834959027,2000.0,0.00030116,50]
[385401556,1757834967009,-10000.01,0.0002044,2]
[385401557,1757834967233,-10000.01,0.0002044,2]
[385401558,1757834977020,-4018.40978424,0.0002044,2]
[385401559,1757834977056,-341.0810234,0.00020723,2]
[385401560,1757834977088,-223.6203904,0.00020802,2]
[385401561,1757834977115,-382.77,0.00020893,3]
[385401562,1757834977190,-68.24760392,0.00020893,3]
[385401563,1757834987070,-4388.88323567,0.000199,2]
[385401564,1757834987099,-123.13239608,0.00020893,3]
[385401565,1757834987151,-401.7887365,0.00020893,3]
[385401566,1757834987223,-172.4012635,0.00020893,3]
[385401567,1757834997121,-430.87626647,0.00020902,2]
[385401568,1757834997148,-387.30828053,0.00020902,2]
[385401569,1757834997176,-1599.01391829,0.00020902,2]
[385401570,1757834997204,-1599.01391829,0.00020902,2]
[385401571,1757834997231,-368.57131455,0.00020902,2]
[385401572,1757834997304,-1230.44260374,0.00020902,2]
[385401573,1757835007156,-300.0,0.00020901,2]
[385401574,1757835007188,-1599.01391829,0.00020902,2]
[385401575,1757835007217,-1599.01391829,0.00020902,2]
[385401576,1757835007246,-1404.94040855,0.00020902,2]
[385401577,1757835007322,-194.07350974,0.00020902,2]
[385401578,1757835011296,2000.0,0.00030116,50]
[385401579,1757835014214,2000.0,0.00030116,50]
[385401580,1757835017177,-10000.01,0.00020891,2]
[385401581,1757835027187,-1805.68210136,0.00020891,2]
[385401582,1757835027218,-1599.01391829,0.00020902,2]
[385401583,1757835027247,-1591.60404241,0.00020902,2]
[385401584,1757835027303,-7.40987588,0.00020902,2]
[385401596,1757835032568,-51344.82774425,0.00020903,2]
[385401659,1757835037249,-10000.01,0.00020903,2]
[385401667,1757835040462,-340.365,0.00020903,2]
[385401668,1757835040916,-237.8870396,0.00020903,2]
[385401669,1757835040954,-1585.49455837,0.00020903,2]
[385401684,1757835047238,-10000.01,0.00020903,2]
[385401685,1757835057261,-10000.01,0.00020903,2]
[385401686,1757835067287,-300.0,0.00020902,2]
[385401687,1757835067329,-9400.01,0.00020903,2]
[385401688,1757835077303,-428.59120109,0.00020844,2]
[385401689,1757835077339,-9142.82759782,0.00020903,2]
[385401690,1757835087389,-10000.01,0.00020903,2]
[385401691,1757835097426,-10000.01,0.00020903,2]
[385401692,1757835107195,2000.0,0.00030118,50]
[385401693,1757835108777,2000.0,0.00030118,50]
[385401694,1757835127465,-178.89631232,0.00020872,2]